bitfinex/quotes_ETHUSD_20260207
["timestamp","ask_amount","ask_price","bid_price","bid_amount"]
[1770481268552,0.33099389,2055.5,2054.2,0.02440453]
[1770481269030,0.33099389,2055.5,2054.3,0.2335703]
[1770481269832,0.33099389,2055.5,2054.4,0.02440453]
[1770481270130,1.945,2055.9,2054.4,0.02440453]
[1770481270428,1.945,2055.9,2055.0,0.02440453]
[1770481270928,4.85980041,2056.3,2055.2,1.21642662]
[1770481271129,4.85980041,2056.3,2055.4,0.02440453]
[1770481271621,1.947,2056.3,2055.4,0.02440453]
[1770481271813,1.947,2056.3,2055.7,0.02440453]
[1770481271996,1.947,2056.3,2055.4,0.02440453]
[1770481272197,1.947,2056.3,2055.7,0.02440453]
[1770481272600,1.947,2056.3,2054.7,4.86672255]
[1770481272809,1.947,2056.3,2054.8,0.02440453]
[1770481273010,1.947,2056.3,2054.9,0.02440453]
[1770481273197,1.947,2056.3,2055.2,0.02440453]
[1770481273521,0.002,2056.3,2055.8,0.02440453]
[1770481273827,0.002,2056.5,2055.8,0.02440453]
[1770481274419,0.002,2056.5,2055.5,0.02440453]
[1770481274621,0.002,2056.5,2055.0,0.02440453]
[1770481274830,0.002,2056.5,2055.1,0.02440453]
[1770481275026,0.002,2056.5,2055.2,0.02440453]
[1770481275325,0.002,2056.5,2054.8,1.21666342]
[1770481275326,0.002,2056.5,2055.3,0.02440453]
[1770481275503,1.946,2056.5,2055.7,0.02440453]
[1770481275697,1.946,2056.5,2055.5,0.02440453]
[1770481276030,1.946,2056.5,2055.1,0.02440453]
[1770481276207,1.946,2056.5,2055.5,0.02440453]
[1770481276602,1.946,2056.5,2054.8,1.21666342]
[1770481276816,0.002,2056.1,2054.5,1.24119574]
[1770481277015,0.002,2056.1,2054.5,0.02440453]
[1770481277194,0.002,2056.1,2054.8,0.02440453]
[1770481277399,0.002,2056.1,2054.5,1.24118762]
[1770481277701,0.002,2056.1,2054.4,0.02440453]
[1770481278215,0.002,2056.1,2054.2,1.21697716]
[1770481278431,0.002,2056.1,2054.7,0.02440453]
[1770481278599,0.002,2056.1,2054.4,0.02440453]
[1770481278800,0.002,2056.1,2054.7,0.02440453]
[1770481279000,0.002,2056.1,2055.0,0.02440453]
[1770481279198,0.002,2056.1,2054.7,0.02440453]
[1770481279397,0.002,2056.1,2054.1,1.21702307]
[1770481279601,0.002,2056.1,2054.5,0.02440453]
[1770481279908,0.002,2056.1,2054.3,0.02440453]
[1770481280316,0.002,2056.1,2054.6,0.02440453]
[1770481280901,0.002,2056.1,2054.9,0.02440453]
[1770481281213,0.002,2056.1,2054.6,1.24118195]
[1770481281528,0.002,2056.1,2054.6,0.02440453]
[1770481281938,0.002,2056.1,2054.9,0.02440453]
[1770481282111,0.002,2056.1,2055.2,0.02440453]
[1770481282310,0.002,2056.1,2055.3,0.02440453]
[1770481282634,0.002,2056.1,2054.9,0.25797483]
[1770481282635,1.945,2056.1,2054.9,0.25797483]
[1770481282802,1.945,2056.1,2054.9,0.02440453]
[1770481283004,0.002,2056.3,2055.4,0.02440453]
[1770481283224,0.002,2056.3,2054.8,0.2335703]
[1770481283421,0.002,2056.3,2054.3,1.21694328]
[1770481283630,0.002,2056.3,2054.3,1.21688639]
[1770481283836,0.02640453,2056.3,2054.1,1.21706801]
[1770481284038,0.002,2056.3,2054.2,0.02440453]
[1770481284218,0.44898921,2056.2,2054.5,0.02440453]
[1770481284534,0.02440453,2056.1,2054.0,8.36268454]
[1770481284736,0.002,2056.3,2054.2,0.02440453]
[1770481284905,0.44912433,2056.2,2054.3,0.2335703]
[1770481285106,0.002,2056.3,2054.2,1.24138933]
[1770481285315,0.44924169,2056.2,2054.4,1.21690031]
[1770481285513,0.002,2056.3,2054.5,0.02440453]
[1770481285921,1.943,2056.2,2054.5,0.02440453]
[1770481286436,1.943,2056.1,2054.8,0.02440453]
[1770481286934,1.943,2056.1,2054.9,0.02440453]
[1770481287104,0.002,2056.3,2054.6,1.45033877]
[1770481287310,1.943,2056.2,2054.8,0.02440453]
[1770481287837,5.105,2056.1,2054.4,0.02440453]
[1770481288040,1.943,2056.0,2054.7,0.02440453]
[1770481288228,0.002,2056.3,2054.3,4.86782455]
[1770481288229,0.002,2056.3,2055.2,0.02440453]
[1770481288416,3.15843139,2056.9,2054.6,1.24114272]
[1770481288615,0.45127252,2056.8,2054.9,0.02440453]
[1770481288823,0.45127252,2056.7,2055.0,0.02440453]
[1770481289136,2.39427252,2056.6,2054.6,1.24113486]
[1770481289341,1.943,2056.6,2055.2,0.02440453]
[1770481289642,0.45197835,2056.5,2055.2,0.02440453]
[1770481289830,0.45195927,2056.4,2054.8,0.02440453]
[1770481290015,1.943,2056.6,2054.8,0.02540453]
[1770481290216,0.002,2055.9,2055.3,0.02440453]
[1770481290413,0.002,2055.9,2055.6,0.02440453]
[1770481290609,0.002,2055.9,2055.2,0.02440453]
[1770481291220,0.002,2056.1,2055.8,0.02440453]
[1770481291626,0.002,2056.1,2055.5,0.02440453]
[1770481292015,0.002,2056.1,2055.6,0.02440453]
[1770481292246,0.33016121,2057.3,2056.5,0.02440453]
[1770481292431,0.33016121,2057.3,2055.6,1.21618992]
[1770481292746,0.4766572,2057.2,2055.6,1.21618992]
[1770481292947,0.02440453,2056.9,2055.1,1.21647156]
[1770481293115,0.02440453,2057.2,2055.2,1.44999132]
[1770481293317,0.02440453,2056.6,2054.8,4.86736901]
[1770481293724,1.943,2056.5,2054.8,0.001]
[1770481293932,0.02440453,2056.1,2054.8,0.001]
[1770481294222,0.45308374,2056.0,2054.8,0.001]
[1770481294422,0.02440453,2056.6,2054.8,0.001]
[1770481294638,0.45309133,2056.5,2054.9,1.21655699]
[1770481294926,1.943,2056.7,2054.8,0.001]
[1770481295127,0.4530018,2056.6,2054.9,1.24097998]
[1770481295344,0.4530018,2056.5,2055.0,0.02440453]
[1770481295516,0.4530018,2056.4,2055.3,0.02440453]
[1770481295712,0.4530018,2056.3,2055.4,0.02440453]
[1770481296031,1.943,2056.7,2055.7,0.02440453]
[1770481296230,1.943,2056.7,2056.0,0.02440453]
[1770481296231,0.45366482,2056.6,2056.0,0.02440453]
[1770481296431,1.943,2056.7,2056.0,0.02440453]
[1770481296650,1.943,2056.7,2056.1,0.02440453]
[1770481297019,1.943,2056.7,2056.4,0.02440453]
[1770481297354,1.943,2056.7,2055.6,0.02440453]
[1770481297641,0.002,2057.4,2056.1,0.02440453]
[1770481297846,2.39686405,2057.3,2056.1,0.02440453]
[1770481298041,0.45386405,2057.2,2055.9,0.02440453]
[1770481298245,0.45386405,2057.1,2056.0,0.02440453]
[1770481298443,0.45386405,2057.0,2055.7,0.02440453]
[1770481298643,0.45386405,2056.9,2055.7,0.02440453]
[1770481298829,0.45386405,2056.8,2055.7,0.02440453]
[1770481299022,0.45390155,2056.7,2055.7,0.02440453]
[1770481299224,1.943,2057.3,2055.4,0.02440453]
[1770481299225,0.45392147,2056.6,2055.4,0.02440453]
[1770481299441,0.31601638,2057.2,2055.6,0.02440453]
[1770481299761,0.45397946,2057.1,2056.2,0.02440453]
[1770481299961,0.45397946,2057.0,2055.6,0.02440453]
[1770481300169,0.45397946,2056.9,2055.6,0.02440453]
[1770481300459,0.45397946,2056.8,2055.7,0.02440453]
[1770481300633,0.45397946,2056.7,2055.6,0.02440453]
[1770481300834,0.45397946,2056.7,2055.3,1.44992214]
[1770481300835,0.45401739,2056.6,2055.4,0.02440453]
[1770481301035,0.45404247,2056.5,2055.2,0.02440453]
[1770481301242,0.45404247,2056.4,2055.2,0.02440453]
[1770481301450,0.45409891,2056.3,2055.1,0.02440453]
[1770481301646,0.45409891,2056.2,2055.1,0.02440453]
[1770481301845,1.943,2056.8,2055.5,0.02440453]
[1770481302063,0.45406624,2056.7,2055.8,0.02440453]
[1770481302260,0.45406624,2056.6,2055.8,0.02440453]
[1770481302432,1.943,2056.8,2055.8,0.02440453]
[1770481302632,0.31601638,2057.2,2055.8,0.02440453]
[1770481302828,0.45402963,2057.1,2055.5,0.001]
[1770481303065,0.45402963,2057.0,2055.6,0.02440453]
[1770481303255,0.002,2056.3,2055.9,0.02440453]
[1770481303456,0.45399534,2056.2,2055.5,0.001]
[1770481303661,0.45399534,2056.1,2054.5,0.001]
[1770481303857,0.02440453,2055.6,2054.0,2.08565255]
[1770481304063,2.39699534,2055.5,2054.4,0.001]
[1770481304244,0.45399534,2055.4,2053.7,0.001]
[1770481304447,0.45399534,2055.3,2053.7,0.001]
[1770481304639,0.45399534,2055.2,2053.7,0.001]
[1770481304846,0.45399534,2055.1,2053.7,0.001]
[1770481305063,0.45399534,2055.0,2053.8,0.02440453]
[1770481305265,0.45399534,2054.9,2053.7,0.001]
[1770481305451,0.45399534,2054.8,2053.7,0.001]
[1770481305660,0.45399534,2054.7,2053.7,0.001]
[1770481305860,0.45399534,2054.6,2053.7,0.001]
[1770481306049,0.45399534,2054.5,2053.7,0.001]
[1770481306377,0.45399534,2054.4,2053.7,0.001]
[1770481306578,0.45222233,2054.3,2053.7,0.001]
[1770481306735,0.4522238,2054.2,2053.7,0.001]
[1770481307069,4.86586545,2055.2,2053.7,0.001]
[1770481307371,3.00594026,2055.1,2053.7,0.001]
[1770481307535,0.4522706,2055.0,2053.7,0.001]
[1770481307739,0.4522706,2054.9,2053.7,0.001]
[1770481308042,0.4522706,2054.8,2053.7,0.001]
[1770481308240,1.943,2055.1,2053.7,0.001]
[1770481308442,0.45146817,2055.0,2053.7,0.001]
[1770481308663,0.45146817,2054.9,2053.7,0.001]
[1770481308858,0.45146817,2054.8,2053.7,0.001]
[1770481309069,0.45146817,2054.7,2053.7,0.001]
[1770481309249,0.45146817,2054.6,2053.7,0.001]
[1770481309448,0.80257251,2054.9,2053.7,0.001]
[1770481309666,0.45106206,2054.8,2053.7,0.001]
[1770481309860,0.45106206,2054.7,2053.7,0.001]
[1770481310061,0.24945841,2054.8,2053.7,0.001]
[1770481310266,1.943,2055.1,2053.7,0.001]
[1770481310599,0.68325022,2055.4,2053.8,0.02440453]
[1770481310752,1.944,2055.3,2054.1,0.02440453]
[1770481311443,1.944,2055.3,2053.8,0.02440453]
[1770481311644,1.944,2055.3,2054.1,0.02440453]
[1770481312071,1.944,2055.3,2053.8,0.02440453]
[1770481312271,1.944,2055.3,2053.9,0.02440453]
[1770481312272,0.45043757,2055.2,2053.9,0.02440453]
[1770481312575,1.944,2055.3,2054.2,0.02440453]
[1770481312873,1.944,2055.3,2054.5,0.02440453]
[1770481313173,1.21778478,2056.3,2054.5,0.02440453]
[1770481313342,1.944,2055.5,2054.5,0.02440453]
[1770481313880,1.944,2055.5,2054.2,0.02440453]
[1770481314081,1.944,2055.5,2054.5,0.02440453]
[1770481314783,1.944,2055.5,2053.9,0.02440453]
[1770481314950,0.45035427,2055.4,2053.5,0.001]
[1770481315158,0.45035427,2055.3,2053.5,0.001]
[1770481315465,0.45035427,2055.2,2053.8,0.02440453]
[1770481315684,0.28447085,2055.3,2054.3,0.001]
[1770481315979,0.45015764,2055.2,2054.3,0.001]
[1770481316176,0.0275,2055.2,2054.3,0.001]
[1770481317087,0.45019485,2055.1,2053.5,0.001]
[1770481317381,0.0275,2055.2,2053.5,0.001]
[1770481317582,0.45014496,2055.1,2053.5,0.001]
[1770481317760,0.45011797,2055.0,2053.5,0.001]
[1770481317947,0.45007898,2054.9,2053.5,0.001]
[1770481318151,0.0275,2054.9,2053.5,0.001]
[1770481319086,0.0275,2054.9,2053.8,0.02440453]
[1770481319275,0.0275,2054.9,2053.5,0.001]
[1770481319467,0.0275,2054.9,2053.8,0.02440453]
[1770481319863,0.0275,2054.9,2054.1,0.02440453]
[1770481320074,0.0275,2054.9,2054.4,0.02440453]
[1770481320282,0.0275,2054.9,2054.5,0.02440453]
[1770481320859,0.002,2055.3,2054.8,0.02440453]
[1770481321068,0.002,2055.3,2053.9,1.21719655]
[1770481321069,0.002,2055.3,2054.4,0.02440453]
[1770481321273,0.002,2055.3,2054.7,0.02440453]
[1770481321790,0.002,2055.3,2054.8,0.02440453]
[1770481322005,0.002,2055.3,2054.5,0.02440453]
[1770481322177,0.002,2055.3,2054.3,0.02440453]
[1770481322493,0.002,2055.3,2054.7,0.02440453]
[1770481322790,0.002,2055.3,2054.4,0.02440453]
[1770481322990,0.002,2055.3,2054.7,0.02440453]
[1770481323293,0.002,2055.3,2055.0,0.02440453]
[1770481323461,1.944,2056.0,2055.1,0.02440453]
[1770481323792,0.002,2056.3,2055.6,0.02440453]
[1770481323961,0.002,2056.3,2055.7,0.02440453]
[1770481324303,0.002,2056.3,2055.4,0.02440453]
[1770481324519,0.002,2056.3,2055.7,0.02440453]
[1770481324818,0.002,2056.3,2053.5,0.001]
[1770481324819,0.04880906,2055.7,2053.5,0.001]
[1770481324975,0.02440453,2055.8,2053.5,0.001]
[1770481324976,5.128,2055.3,2053.5,0.001]
[1770481325160,3.32965797,2055.6,2053.1,0.02440453]
[1770481325161,1.89845797,2055.2,2053.1,0.02440453]
[1770481325360,2.39385842,2055.1,2053.3,0.02440453]
[1770481325563,0.44985842,2055.0,2053.4,0.02440453]
[1770481325792,0.44985842,2054.9,2054.0,0.02440453]
[1770481325965,0.44985842,2054.8,2054.1,0.02440453]
[1770481326176,0.44985842,2054.7,2053.5,0.02440453]
[1770481326494,1.944,2055.0,2053.5,0.02440453]
[1770481326495,0.44985842,2054.6,2053.9,0.02440453]
[1770481326681,0.44985842,2054.5,2053.5,0.02440453]
[1770481326872,0.44985842,2054.4,2053.8,0.02440453]
[1770481327062,0.44985842,2054.3,2053.5,0.02440453]
[1770481327263,0.44985842,2054.2,2053.6,0.02440453]
[1770481327463,0.44985842,2054.1,2053.3,0.02440453]
[1770481327683,0.44985842,2054.0,2052.9,0.02440453]
[1770481327860,0.44985842,2053.9,2053.3,0.02440453]
[1770481328064,0.44985842,2053.9,2052.6,4.87168126]
[1770481328065,0.44985842,2053.8,2052.9,0.02440453]
[1770481328276,0.44985842,2053.7,2053.2,0.02440453]
[1770481328486,0.44985842,2053.6,2052.9,0.02440453]
[1770481328673,0.31605953,2054.9,2053.5,0.02440453]
[1770481328884,1.944,2054.9,2053.6,0.02540453]
[1770481329088,1.944,2054.9,2053.7,0.02440453]
[1770481329299,1.946,2055.2,2054.0,0.02440453]
[1770481329598,1.946,2055.2,2053.6,0.001]
[1770481329887,0.002,2055.2,2053.6,0.001]
[1770481330092,1.944,2055.1,2054.0,0.02440453]
[1770481330461,1.944,2055.1,2053.8,0.02440453]
[1770481330664,1.944,2055.1,2054.1,0.02440453]
[1770481331781,1.944,2055.1,2053.6,0.001]
[1770481332090,1.944,2055.1,2053.9,0.02440453]
[1770481332864,1.944,2055.1,2053.6,0.001]
[1770481333284,1.944,2055.1,2053.6,0.02540453]
[1770481333884,1.944,2055.1,2053.7,0.02440453]
[1770481334900,1.944,2055.1,2053.8,0.02440453]
[1770481335297,1.944,2055.1,2053.9,0.02440453]
[1770481335872,1.944,2055.1,2053.7,0.02440453]
[1770481336576,1.944,2055.1,2053.6,0.001]
[1770481336774,1.944,2055.1,2053.7,0.02440453]
[1770481337200,1.944,2055.1,2054.0,0.02440453]
[1770481337404,1.944,2055.1,2054.1,0.02440453]
[1770481338010,1.944,2055.1,2053.7,0.02440453]
[1770481338215,1.944,2055.1,2053.6,0.001]
[1770481338379,1.944,2055.1,2053.7,0.02440453]
[1770481338580,1.944,2055.1,2053.6,0.001]
[1770481338910,1.944,2055.1,2053.7,0.02440453]
[1770481339619,1.944,2055.1,2053.8,0.02440453]
[1770481340178,1.944,2055.1,2054.1,0.02440453]
[1770481340625,1.944,2055.1,2053.8,0.02440453]
[1770481340792,0.45367347,2055.0,2054.1,0.02440453]
[1770481340996,0.45367347,2054.9,2053.8,0.02440453]
[1770481341198,0.45367347,2054.8,2053.8,0.02440453]
[1770481341481,0.45367347,2054.7,2053.6,0.001]
[1770481341706,0.45367347,2054.6,2053.8,0.02440453]
[1770481341981,0.45367347,2054.5,2054.1,0.02440453]
[1770481342209,1.944,2055.1,2053.8,0.02440453]
[1770481342414,0.45370423,2055.0,2054.1,0.02440453]
[1770481342590,0.45370423,2054.9,2054.4,0.02440453]
[1770481342788,0.45370423,2054.8,2054.1,0.02440453]
[1770481343119,0.45370423,2054.7,2054.1,0.02440453]
[1770481343312,1.944,2055.1,2054.2,0.02440453]
[1770481343619,0.45371921,2055.0,2053.7,1.21726276]
[1770481343821,0.45371921,2054.9,2053.7,1.21726276]
[1770481343999,0.45368883,2054.8,2054.1,0.02440453]
[1770481344186,1.944,2055.1,2054.1,0.02440453]
[1770481344388,0.45374394,2055.0,2054.1,0.02440453]
[1770481344595,0.45374394,2054.9,2054.1,0.02440453]
[1770481344817,1.944,2054.9,2053.8,0.02440453]
[1770481345015,1.944,2054.9,2054.1,0.02440453]
[1770481345396,1.944,2054.9,2053.8,0.02440453]
[1770481345721,1.944,2054.9,2053.6,0.02540453]
[1770481345927,0.45355985,2054.8,2053.6,0.001]
[1770481346101,0.45355985,2054.7,2053.6,0.001]
[1770481346302,0.45355985,2054.6,2053.6,0.001]
[1770481346608,1.944,2054.9,2053.6,0.001]
[1770481346609,0.45355985,2054.5,2053.6,0.001]
[1770481346811,0.45355985,2054.4,2053.6,0.001]
[1770481347119,1.944,2054.9,2053.7,0.02440453]
[1770481347313,0.45323476,2054.8,2053.6,0.001]
[1770481347624,0.45323476,2054.7,2053.7,0.02440453]
[1770481347923,0.45323476,2054.6,2053.6,0.001]
[1770481348090,0.45323476,2054.5,2053.6,0.001]
[1770481348290,1.944,2054.9,2054.0,0.02440453]
[1770481348520,0.45333448,2054.8,2053.7,0.02440453]
[1770481348718,0.45333448,2054.7,2054.1,0.02440453]
[1770481349029,1.944,2054.9,2054.4,0.02440453]
[1770481349618,0.002,2055.2,2054.4,0.02440453]
[1770481349924,0.002,2056.3,2054.5,0.02440453]
[1770481350129,0.02440453,2056.1,2053.9,3.02055]
[1770481350311,0.02440453,2055.9,2054.0,0.02440453]
[1770481350628,0.4536011,2055.8,2054.2,0.2335703]
[1770481350817,0.002,2055.8,2054.0,0.02440453]
[1770481351018,0.002,2055.8,2054.3,0.02440453]
[1770481351219,0.002,2056.3,2054.8,0.2335703]
[1770481351420,0.002,2056.2,2055.0,0.2335703]
[1770481351601,0.004,2056.3,2055.0,0.2335703]
[1770481351921,0.002,2056.2,2055.2,0.2335703]
[1770481352514,0.002,2056.2,2054.7,1.21661186]
[1770481352722,0.02440453,2056.0,2053.8,0.02440453]
[1770481353010,0.02440453,2055.5,2053.7,1.21730452]
[1770481353204,0.45259945,2055.4,2053.7,1.21730452]
[1770481353403,0.02440453,2055.8,2053.6,0.001]
[1770481353404,0.45259945,2055.3,2053.6,0.001]
[1770481353588,0.45259945,2055.2,2053.6,0.001]
[1770481353793,0.45259945,2055.1,2053.6,0.001]
[1770481354016,0.002,2055.0,2053.8,0.02440453]
[1770481354193,0.002,2055.6,2053.8,0.02440453]
[1770481354394,0.45330814,2055.5,2054.1,0.02440453]
[1770481354590,0.002,2055.4,2054.1,0.02440453]
[1770481354795,1.944,2055.7,2054.4,0.02440453]
[1770481355021,0.002,2055.6,2054.4,0.02440453]
[1770481355406,0.6,2055.5,2054.4,0.02440453]
[1770481355608,0.6,2055.5,2054.7,0.02440453]
[1770481355796,0.6,2055.5,2054.9,0.2335703]
[1770481356119,0.002,2056.0,2055.0,0.02440453]
[1770481356295,0.002,2055.9,2055.0,0.02440453]
[1770481356696,0.002,2055.9,2054.8,1.21666342]
[1770481356896,0.002,2055.9,2055.0,0.02440453]
[1770481357197,0.002,2055.9,2054.9,0.2335703]
[1770481357422,0.002,2055.9,2054.8,1.21666342]
[1770481357928,0.002,2055.9,2055.2,0.02440453]
[1770481358232,0.002,2055.9,2055.0,1.21654501]
[1770481358526,0.002,2055.9,2055.1,0.25797483]
[1770481358840,0.002,2055.9,2054.8,0.2335703]
[1770481359009,0.002,2055.8,2054.8,0.25797483]
[1770481359912,0.002,2055.8,2054.9,1.21660421]
[1770481360335,0.002,2055.7,2054.5,1.21673474]
[1770481360549,0.002,2055.9,2054.4,0.02440453]
[1770481361047,0.002,2055.9,2054.0,1.2415411]
[1770481361203,0.4523625,2055.8,2054.0,1.2415411]
[1770481361400,0.4523625,2055.7,2053.9,0.02440453]
[1770481361712,0.002,2055.7,2054.4,0.02440453]
[1770481362032,0.002,2055.7,2054.1,1.21707089]
[1770481362235,0.002,2055.7,2054.5,0.02440453]
[1770481362400,0.002,2055.7,2054.2,0.02440453]
[1770481362601,0.002,2055.7,2054.5,1.24124561]
[1770481363015,0.002,2055.7,2054.6,0.2335703]
[1770481363513,0.002,2055.7,2054.8,0.02440453]
[1770481363710,0.002,2055.7,2054.5,1.24124561]
[1770481363711,0.002,2055.7,2054.5,1.21684108]
[1770481363933,0.002,2055.7,2054.2,0.2335703]
[1770481364540,0.002,2055.7,2054.0,1.21713729]
[1770481364724,0.02440453,2055.6,2053.7,1.21827099]
[1770481365108,0.002,2055.5,2053.8,1.21725471]
[1770481365307,0.02440453,2055.8,2053.8,1.21725471]
[1770481365504,0.02640453,2055.7,2053.7,0.001]
[1770481365703,0.02440453,2055.4,2053.7,0.001]
[1770481366128,0.002,2055.3,2053.7,0.001]
[1770481366432,0.02440453,2055.1,2053.7,0.001]
[1770481366814,0.002,2055.0,2053.7,0.001]
[1770481367404,0.02440453,2054.8,2053.7,0.001]
[1770481367607,1.943,2054.7,2053.7,0.001]
[1770481367808,1.943,2054.7,2053.5,0.001]
[1770481368525,1.943,2054.7,2053.9,0.001]
[1770481368941,0.6,2054.5,2053.9,0.001]
[1770481369239,0.6,2054.5,2053.6,0.001]
[1770481371446,0.6,2054.5,2053.5,0.001]
[1770481372341,0.8543,2054.5,2053.6,0.02440453]
[1770481372555,0.6,2054.5,2053.4,0.02440453]
[1770481372732,0.6,2054.5,2053.1,0.25797483]
[1770481373536,0.6,2054.5,2053.4,0.02440453]
[1770481373922,0.6,2054.5,2053.1,0.25797483]
[1770481374322,0.6,2054.5,2053.4,0.02440453]
[1770481374954,0.6,2054.5,2053.2,1.21761153]
[1770481376737,0.6,2054.5,2053.4,0.02440453]
[1770481376936,0.6,2054.5,2053.2,1.21761153]
[1770481377468,0.6,2054.5,2052.9,1.21774295]
[1770481377758,0.6,2054.5,2052.8,0.001]
[1770481378070,0.02440453,2054.0,2052.8,0.001]
[1770481378227,0.02440453,2054.0,2052.5,0.001]
[1770481378228,0.45198895,2053.9,2052.5,0.001]
[1770481378434,0.02440453,2053.4,2051.4,1.21866598]
[1770481378653,0.37477537,2053.3,2052.5,0.25258052]
[1770481378851,6.34505582,2054.2,2052.5,0.25258052]
[1770481379156,0.02440453,2053.3,2051.3,3.186445]
[1770481379360,0.02440453,2053.3,2051.3,0.25257139]
[1770481379743,0.02440453,2053.9,2051.4,3.120224]
[1770481379934,0.02440453,2053.6,2051.7,0.2335703]
[1770481380339,0.02440453,2053.9,2051.6,3.36204]
[1770481380543,0.02440453,2053.6,2051.6,0.2335703]
[1770481380740,0.02440453,2053.3,2051.7,1.21850173]
[1770481380961,0.02440453,2052.7,2051.3,4.87481242]
[1770481381137,0.02440453,2052.7,2051.2,1.21872649]
[1770481381345,0.02440453,2052.7,2051.1,4.87530181]
[1770481381346,0.02440453,2053.3,2051.4,4.8745011]
[1770481381664,0.02440453,2053.0,2052.7,0.001]
[1770481381870,0.02440453,2053.0,2051.3,1.21773242]
[1770481382040,0.02440453,2052.6,2051.3,1.21773242]
[1770481382235,4.86706046,2054.7,2052.5,0.001]
[1770481382563,0.02440453,2054.0,2052.5,0.001]
[1770481382746,0.02440453,2053.4,2052.5,0.001]
[1770481383063,0.02440453,2053.7,2052.5,0.001]
[1770481383262,0.02440453,2053.4,2052.5,0.001]
[1770481383634,0.02440453,2053.4,2051.6,0.2345703]
[1770481383635,0.02440453,2053.1,2051.6,0.001]
[1770481383835,0.02440453,2052.8,2051.6,0.001]
[1770481384074,0.02440453,2052.5,2051.6,0.001]
[1770481384232,0.02440453,2052.4,2051.6,0.001]
[1770481384630,0.02440453,2052.1,2051.0,5.80452086]
[1770481384881,0.02440453,2051.8,2050.2,1.21938636]
[1770481385174,1.21805478,2052.5,2050.4,4.87693938]
[1770481385175,0.02440453,2052.2,2050.4,4.87693938]
[1770481385337,1.945,2052.6,2050.5,0.02440453]
[1770481385680,0.02440453,2052.5,2050.9,1.21897495]
[1770481385832,0.02440453,2052.5,2050.7,1.21907967]
[1770481385833,0.02440453,2052.2,2050.7,1.21907967]
[1770481386474,0.02440453,2051.9,2050.4,1.21921844]
[1770481386645,0.02440453,2051.6,2050.1,4.87752249]
[1770481386845,0.02440453,2051.6,2049.9,1.21957168]
[1770481387047,0.02440453,2051.5,2049.9,1.21957168]
[1770481387253,0.02440453,2052.3,2049.9,1.21957168]
[1770481387458,0.02440453,2052.5,2050.3,0.02440453]
[1770481387672,0.02440453,2052.5,2049.9,1.21957168]
[1770481387673,0.02440453,2052.2,2050.0,0.02440453]
[1770481387838,1.945,2052.4,2050.1,0.2335703]
[1770481388039,0.02440453,2052.2,2050.1,0.52571307]
[1770481388240,1.945,2052.4,2050.3,0.02440453]
[1770481388556,0.02440453,2053.6,2052.6,1.16399125]
[1770481388760,0.02440453,2054.0,2051.6,1.21854993]
[1770481388955,0.02440453,2053.5,2051.4,1.21866287]
[1770481389160,0.02440453,2054.0,2051.5,0.02440453]
[1770481389341,1.946,2053.4,2051.5,1.15170295]
[1770481389540,1.946,2053.4,2051.4,1.21866287]
[1770481389740,1.946,2053.4,2051.5,0.2335703]
[1770481389938,0.02440453,2053.0,2051.4,1.21866287]
[1770481390147,0.02440453,2053.3,2051.5,1.21862052]
[1770481390352,0.02440453,2052.4,2050.0,2.393177]
[1770481390645,0.02440453,2052.9,2050.7,4.87594474]
[1770481390843,0.02440453,2052.8,2050.9,0.2335703]
[1770481391061,0.96616822,2053.2,2050.7,4.87594474]
[1770481391062,0.02440453,2052.7,2050.7,4.87594474]
[1770481391262,0.02440453,2052.9,2051.0,0.2335703]
[1770481391479,0.02440453,2052.9,2050.8,0.2335703]
[1770481391776,0.02440453,2053.3,2050.8,0.02440453]
[1770481391989,0.02440453,2052.7,2050.6,4.9009672]
[1770481392193,1.946,2053.4,2051.8,0.02440453]
[1770481392349,0.44855108,2053.3,2051.6,0.02440453]
[1770481392543,1.946,2053.4,2051.9,0.02440453]
[1770481392761,1.946,2053.4,2051.6,0.02440453]
[1770481392944,1.946,2053.4,2051.9,0.02440453]
[1770481393143,1.946,2053.4,2051.7,1.21850173]
[1770481393344,1.946,2053.4,2051.9,0.02440453]
[1770481393584,1.946,2053.4,2052.2,0.02440453]
[1770481393768,0.6,2053.2,2051.9,0.02440453]
[1770481394280,0.6,2053.2,2052.0,0.02440453]
[1770481394485,0.6,2053.2,2051.8,0.2335703]
[1770481394671,0.6,2053.2,2051.9,0.02440453]
[1770481394850,0.602,2053.2,2051.9,0.02440453]
[1770481395051,0.602,2053.2,2052.0,1.21832358]
[1770481395441,0.602,2053.2,2052.2,0.02440453]
[1770481395657,0.602,2053.2,2052.3,0.02440453]
[1770481396161,0.002,2053.2,2052.3,0.02440453]
[1770481396542,0.002,2053.2,2052.6,0.02440453]
[1770481396775,1.948,2053.4,2052.6,0.02440453]
[1770481396976,0.002,2054.3,2052.9,0.02440453]
[1770481397346,0.002,2054.3,2053.2,0.02440453]
[1770481399244,0.002,2054.3,2053.3,1.21755223]
[1770481399471,0.002,2054.3,2053.0,1.21769276]
[1770481399973,0.002,2054.3,2052.9,4.87097424]
[1770481400378,0.002,2054.3,2053.0,1.2177071]
[1770481400583,0.002,2054.3,2052.7,1.21785639]
[1770481401080,0.002,2054.3,2052.4,1.21805171]
[1770481401399,0.002,2054.3,2052.5,0.02440453]
[1770481401400,0.45005319,2054.2,2052.5,0.02440453]
[1770481401679,3.95551752,2054.3,2052.2,1.21820485]
[1770481401849,3.95551752,2054.3,2052.4,0.02440453]
[1770481402259,3.95551752,2054.3,2052.7,0.02440453]
[1770481403276,3.95551752,2054.3,2052.8,1.21784879]
[1770481403777,0.6,2054.1,2052.8,1.21784879]
[1770481404076,0.6,2054.1,2052.9,0.2335703]
[1770481404279,0.6,2054.1,2053.0,0.02440453]
[1770481404781,3.95551752,2054.3,2053.0,0.02440453]
[1770481405076,3.95551752,2054.3,2053.3,0.02440453]
[1770481405462,3.95551752,2054.3,2053.4,1.21749293]